Cogmind - Beta 14 @@@ ROGUE MODE // 2024.09.01 @ 04:13:44 Player: MOPO3 Result: Destroyed by C-40 Crusher with Compactor Performance ------------- Evolutions (4) 2000 Regions Visited (9) 1800 Robots Destroyed (78) 390 Value Destroyed (1785) 1785 Prototype IDs (14) 280 Alien Tech Used (0) 0 Bonus (560) 560 TOTAL SCORE: 6815 Bonus ------- Follower Combat Kills 260 Aligned with FarCom 300 Cogmind --------- Core Integrity 0/850 Matter 300/300 Energy 100/100 System Corruption 5% Temperature Cool (0) Movement Core (50) Location -6/Waste Parts ------- > --- POWER (1) -------- (None) > --- PROPULSION (5) --- (None) > --- UTILITY (7) ------ (None) > --- WEAPON (2) ------- (None) > --- INVENTORY (5) ---- Improved Deuterium Engine Improved Deuterium Engine Improved Airjet KE Penetrator Assault Cannon Peak State ------------ > --- POWER ------------ Light Angular Momentum Engine > --- PROPULSION ------- Cooled Aerolev Unit Combat Airjet Combat Airjet Combat Airjet Gyrokinetic Inverter > --- UTILITY ---------- Huge Storage Unit Structural Scanner Transmission Jammer Improved Medium Armor Plating Force Field Hacking Suite Hacking Suite > --- WEAPON ----------- KE Penetrator Mini Assault Cannon > --- INVENTORY -------- Improved Deuterium Engine Improved Deuterium Engine Improved Deuterium Engine Improved Deuterium Engine Cold Fusion Reactor Gravmag System Gravmag System Improved Airjet Improved Signal Interpreter Matter Filter Light Armor Plating Hardened Light Armor Plating Improved Light Armor Plating Improved Light Armor Plating Improved Light Armor Plating Heavy Machine Gun Assault Cannon Mini Assault Cannon Advanced EMP Blaster Mini Grenade Launcher Mini Grenade Launcher Missile Launcher Heavy Flail [Rating: 72] Favorites ----------- Power Light Angular Momentum Engine Engine Light Angular Momentum Engine Reactor Cold Fusion Reactor Propulsion Wheel Wheel Wheel Hover Unit Combat Airjet Flight Unit Xenon Bombardment Thruster Utility Hacking Suite Device Structural Scanner Storage Huge Storage Unit Processor Signal Interpreter Hackware Hacking Suite Protection Improved Light Armor Plating Weapon Assault Rifle Energy Gun Particle Gun Energy Cannon Improved EM Pulse Cannon Ballistic Gun Assault Rifle Ballistic Cannon Mini Assault Cannon Launcher Missile Launcher Impact Weapon Heavy Flail Build | -11 -10 -10 -10 -9 -8 -7 -7 -6 -6 ------- Run | Yrd Mat Min Exi Min Mat Fac Sto Fac Was Slots Evolved 8 | . . . . . 4 2 . 2 . Power . | . . . . . . . . . . Propulsion 3 | . . . . . 2 . . 1 . Utility 5 | . . . . . 2 2 . 1 . Weapon . | . . . . . . . . . . Parts Attached 133 | 7 2 3 3 17 19 16 29 37 . Power 11 | 2 . . . 3 1 2 2 1 . Engine 10 | 2 . . . 3 1 2 1 1 . Core . | . . . . . . . . . . Reactor 1 | . . . . . . . 1 . . Propulsion 48 | 2 . 2 . 9 5 8 13 9 . Treads . | . . . . . . . . . . Leg . | . . . . . . . . . . Wheel 34 | 2 . 2 . 9 5 5 10 1 . Hover 8 | . . . . . . . . 8 . Flight 6 | . . . . . . 3 3 . . Utility 30 | 1 2 1 3 . 5 4 2 12 . Device 8 | . . . 2 . 1 . . 5 . Storage 3 | 1 1 . . . 1 . . . . Processor 5 | . . . 1 . 1 1 . 2 . Hackware 3 | . . . . . . 1 1 1 . Protection 11 | . 1 1 . . 2 2 1 4 . Artifact . | . . . . . . . . . . Weapon 44 | 2 . . . 5 8 2 12 15 . Energy Gun 4 | . . . . 2 . . 2 . . Energy Cannon 3 | . . . . . . . 3 . . Ballistic Gun 9 | 2 . . . 3 2 . . 2 . Ballistic Cannon 9 | . . . . . 1 . 4 4 . Launcher 5 | . . . . . 2 . . 3 . Special Weapon . | . . . . . . . . . . Impact Weapon 14 | . . . . . 3 2 3 6 . Slashing Weapon . | . . . . . . . . . . Piercing Weapon . | . . . . . . . . . . Special Melee Weapon . | . . . . . . . . . . Unidentified Prototypes 14 | . . . 3 . 1 1 7 2 . Parts Lost 28 | . . 1 . 8 4 . 2 6 7 Power 2 | . . . . 1 . . . . 1 Propulsion 11 | . . . . 3 3 . 2 1 2 Utility 10 | . . 1 . . 1 . . 5 3 Weapon 5 | . . . . 4 . . . . 1 Highest Loss Streak 7 | . . 1 . 2 2 . 1 3 7 To Critical Strikes . | . . . . . . . . . . Average Slot Usage (%) 98 | . 97 96 99 98 99 94 98 99 63 Engine 8 | . 14 14 14 13 9 7 5 4 3 Wheel 23 | . 28 28 28 26 35 27 27 11 . Hover 7 | . . . . . . . . 21 20 Device 8 | . . . . . 8 7 7 16 7 Storage 8 | . 14 14 14 14 9 7 7 6 1 Processor 6 | . . . 10 14 8 7 7 1 6 Hackware 6 | . . . . . . 3 15 12 13 Protection 7 | . 11 10 3 . 8 15 7 7 3 Energy Gun 1 | . . . . 7 . . . . . Ballistic Gun 7 | . 28 28 28 20 3 . . 2 . Ballistic Cannon 2 | . . . . . . 7 5 3 . Launcher 1 | . . . . . 6 . . 1 3 Impact Weapon 3 | . . . . . 7 6 5 3 3 Peak Build Rating 72 | 6 7 7 15 19 28 36 46 72 68 Average Rating 35 | 4 6 6 11 14 22 30 36 61 40 On Entrance 21 | . 6 7 7 13 19 24 34 38 68 Naked Turns 5 | . . . . . . . . . 5 Heaviest Build 117 | 14 52 52 52 50 101 106 111 117 103 Greatest Support 56 | 26 26 26 20 26 40 40 40 56 56 Greatest Overweight (x) 35 | . 1 2 2 4 4 34 35 2 1 Average Overweight (x) 1 | . . 1 2 2 1 2 2 1 . Largest Inventory Capacity 25 | 8 20 20 20 20 25 25 25 25 25 Average Capacity 23 | 6 12 20 20 20 23 25 25 25 9 Most Carried 25 | 3 6 9 10 20 20 25 25 25 25 Average Carried 19 | 1 4 7 9 14 19 23 24 23 9 Final Capacity 25 | 8 20 20 20 20 25 25 25 25 5 Final Carried 25 | 2 6 9 10 20 18 25 25 25 5 Class Distribution -------------------- 53% | Scavenger-Mutant 20% | Hacker-Mutant 19% | Mutant 3% | Scavenger-Assassin Dominant Class ---------------- Mutant | -10/Materials Mutant | -10/Mines Mutant | -10/Exiles Scavenger-Mutant | -9/Mines Scavenger-Mutant | -8/Materials Scavenger-Mutant | -7/Factory Scavenger-Mutant | -7/Storage Hacker-Mutant | -6/Factory Hacker-Mutant | -6/Waste Resources | -11 -10 -10 -10 -9 -8 -7 -7 -6 -6 ----------- Run | Yrd Mat Min Exi Min Mat Fac Sto Fac Was Matter Collected 2705 | 179 . 256 . 343 275 276 405 971 . Remotely . | . . . . . . . . . . Salvage Created 2785 | . . 161 . 526 305 129 542 1122 . Parts 107 | . . 14 . 17 17 4 20 35 . Haulers Intercepted 4 | . . . . . 1 1 1 1 . Recyclers Shooed 4 | . . . . 1 . . 1 2 . Parts Field Recycled . | . . . . . . . . . . Retrieved Matter . | . . . . . . . . . . Parts Self-Destructed . | . . . . . . . . . . Prevented . | . . . . . . . . . . Kills | -11 -10 -10 -10 -9 -8 -7 -7 -6 -6 ------- Run | Yrd Mat Min Exi Min Mat Fac Sto Fac Was Combat Hostiles Destroyed 53 | . . 5 . 15 11 . 6 16 . Guns 26 | . . 5 . 14 2 . . 5 . Cannons 16 | . . . . . 5 . 6 5 . AOE 10 | . . . . 1 3 . . 6 . Classes Destroyed 12 | . . 3 . 3 3 1 . 2 . Worker 8 | . . . . 3 . . 2 3 . Builder 10 | . . . . . 3 . 3 4 . Tunneler 3 | . . 1 . . . 2 . . . Hauler 4 | . . . . . 1 1 1 1 . Recycler 9 | . . . . 4 . . 1 4 . Mechanic 1 | . . . . . . 1 . . . Watcher 1 | . . . . . . . . 1 . Swarmer 17 | . . 3 . 4 4 . . 6 . Grunt 16 | . . 2 . . 4 . 5 5 . Sentry 5 | . . . . . 3 . 1 1 . Programmer 4 | . . . . . . . . 4 . Assembled 11 | . . . . 11 . . . . . Best Kill Streak 8 | . . 3 . 5 6 1 4 8 . Combat Bots Only 6 | . . 3 . 4 6 . 3 3 . Max Kills in Single Turn 2 | . . 1 . 1 2 1 2 2 . Gunslinging . | . . . . . . . . . . Exploded 2 | . . . . 1 2 . . 2 . Melee . | . . . . . . . . . . Uniques/NPCs Destroyed . | . . . . . . . . . . Combat | -11 -10 -10 -10 -9 -8 -7 -7 -6 -6 -------- Run | Yrd Mat Min Exi Min Mat Fac Sto Fac Was Hostile Shots Fired 413 | . . 48 . 78 48 . 74 154 11 Missed 121 | . . 11 . 23 16 . 25 46 . Damage Taken 4765 | . . 416 . 711 938 44 554 1601 501 Core 1506 | . . 49 . 194 333 . 60 457 413 Absorbed by Shields 152 | . . . . . . . . 152 . Regen/Repaired (Parts) 118 | . . . . . . 53 37 28 . Core Remaining (%) 58 | 100 . . . 2 39 . 91 . . Volleys Fired 195 | . . 20 . 75 21 2 21 56 . Largest 2 | . . 2 . 2 2 1 2 2 . Hottest 113 | . . 40 . 105 68 44 113 96 . Shots Fired 367 | . . 40 . 148 35 2 42 100 . Gun 232 | . . 40 . 148 14 . . 30 . Cannon 121 | . . . . . 14 2 42 63 . Launcher 14 | . . . . . 7 . . 7 . Special . | . . . . . . . . . . Kinetic 319 | . . 40 . 135 28 2 21 93 . Thermal 13 | . . . . 13 . . . . . Explosive 12 | . . . . . 7 . . 5 . Electromagnetic 23 | . . . . . . . 21 2 . Robot Hit Streak 10 | . . 5 . 6 8 1 5 10 . Robot Miss Streak 5 | . . 3 . 5 4 1 2 4 . Penetration Max 1 | . . . . . . . . 1 . Secondary Targets 6 | . . 3 . 3 . . . . . Max Gunslinging Chain 1 | . . 1 . 1 . . . . . Shots Hit Robots 243 | . . 24 . 82 28 5 30 74 . Core Hits 118 | . . 9 . 44 21 1 15 28 . Critical Kills 4 | . . . . . . 1 2 1 . Critical Parts Destroyed 5 | . . 1 . . 1 2 . 1 . Critical Strikes 15 | . . 1 . 1 1 3 2 7 . Burn 1 | . . . . 1 . . . . . Destroy 1 | . . 1 . . . . . . . Blast 5 | . . . . . . . . 5 . Smash 8 | . . . . . 1 3 2 2 . Melee Attacks 123 | . . . . . 26 16 40 41 . Impact 123 | . . . . . 26 16 40 41 . Slashing . | . . . . . . . . . . Piercing . | . . . . . . . . . . Sneak Attacks 25 | . . . . . 4 3 7 11 . Combat Hostiles . | . . . . . . . . . . Follow-up Attacks . | . . . . . . . . . . Damage Inflicted 7671 | . . 301 . 732 1281 315 1284 3758 . Guns 1758 | . . 301 . 732 172 . . 553 . Cannons 2017 | . . . . . 249 25 683 1060 . Explosions 1493 | . . . . . 514 . . 979 . Melee 2402 | . . . . . 346 290 601 1165 . Ramming 1 | . . . . . . . . 1 . Kinetic 3244 | . . 301 . 601 421 25 283 1613 . Thermal 400 | . . . . 131 . . . 269 . Explosive 1103 | . . . . . 514 . . 589 . Electromagnetic 521 | . . . . . . . 400 121 . Impact 2402 | . . . . . 346 290 601 1165 . Slashing . | . . . . . . . . . . Piercing . | . . . . . . . . . . Highest Corruption 7 | . . . . . 7 . . 5 5 Average Corruption 2 | . . . . . 7 . . 2 5 Corruption Purged 1 | . . . . . . . . 1 . Corruption Blocked . | . . . . . . . . . . Effects 27 | . . . . . 2 . . 24 1 Message Errors 1 | . . . . . . . . 1 . Matter Fused 9 | . . . . . . . . 9 . Heat Flow Errors 4 | . . . . . 1 . . 3 . Energy Discharges 3 | . . . . . 1 . . 2 . Parts Rejected 1 | . . . . . . . . 1 . Parts Fused 1 | . . . . . . . . 1 . Data Loss (minor) 3 | . . . . . . . . 2 1 Data Loss (major) 2 | . . . . . . . . 2 . Alerts 2 | . . . . . . . . 2 . Weapon Failures 1 | . . . . . . . . 1 . Overload Shots . | . . . . . . . . . . Overflow Damage 1276 | . . . . . 184 188 249 655 . Projectiles 58 | . . . . . . . . 58 . Explosions 22 | . . . . . . . . 22 . Melee 1196 | . . . . . 184 188 249 575 . Knockbacks 27 | . . . . . 1 . 6 20 . Impact 8 | . . . . . 1 . 2 5 . Kinetic 16 | . . . . . . . 4 12 . Secondary 3 | . . . . . . . . 3 . Self-Inflicted Damage 157 | . . . . . 83 . . 74 . Shots 7 | . . . . . 4 . . 3 . Rammed 1 | . . . . . . . . 1 . Targets Rammed 1 | . . . . . . . . 1 . Kicked . | . . . . . . . . . . Crushed . | . . . . . . . . . . Highest Temperature 675 | . . 57 . 216 209 . 495 675 . Average Temperature 127 | . . 29 . 80 40 . 213 129 . Received Heat Transfer 907 | . . 201 . 20 138 . 249 299 . Effects 11 | . . . . 1 . . 3 7 . Shutdowns 5 | . . . . . . . 2 3 . Energy Bleed 4 | . . . . 1 . . 1 2 . Damage (core) 2 | . . . . . . . . 2 . Siege Activations . | . . . . . . . . . . Robots Corrupted 13 | . . . . . 2 2 3 6 . Combat Hostiles 1 | . . . . . 1 . . . . Parts Fried 29 | . . . . . 4 4 4 17 . Impact Corruptions 40 | . . . . . 6 6 9 19 . Robots Melted . | . . . . . . . . . . Combat Hostiles . | . . . . . . . . . . Parts Melted 1 | . . . . 1 . . . . . Heat Transferred 533 | . . . . 383 . . . 150 . Parts Sabotaged . | . . . . . . . . . . Parts Stolen . | . . . . . . . . . . Parts Stripped . | . . . . . . . . . . Power Chain Reactions . | . . . . . . . . . . Alert | -11 -10 -10 -10 -9 -8 -7 -7 -6 -6 ------- Run | Yrd Mat Min Exi Min Mat Fac Sto Fac Was Peak Influence 342 | . . 176 . 76 276 158 193 342 89 Initial 125 | . . . . . 29 125 . 60 74 Average 66 | . . 103 . 11 56 73 67 90 65 Maximum Alert Level 1 | . . . . . 1 . . 1 . Low Security (%) 95 | 100 100 100 . 100 91 100 100 90 100 Level 1 4 | . . . . . 8 . . 9 . Level 2 . | . . . . . . . . . . Level 3 . | . . . . . . . . . . Level 4 . | . . . . . . . . . . Level 5 . | . . . . . . . . . . High Security . | . . . . . . . . . . Max Security . | . . . . . . . . . . Squads Dispatched 18 | . 1 . . 1 2 1 3 10 . Investigation 5 | . 1 . . . 1 . . 3 . Extermination 5 | . . . . . . 1 1 3 . Reinforcement 5 | . . . . 1 1 . 2 1 . Assault . | . . . . . . . . . . Garrison 3 | . . . . . . . . 3 . Intercept . | . . . . . . . . . . Searches Triggered . | . . . . . . . . . . Construction Impeded 1 | . . . . 1 . . . . . Haulers Reinforced . | . . . . . . . . . . Active Scanning Responses . | . . . . . . . . . . Cargo Convoy Interrupts . | . . . . . . . . . . Stealth | -11 -10 -10 -10 -9 -8 -7 -7 -6 -6 --------- Run | Yrd Mat Min Exi Min Mat Fac Sto Fac Was Distress Signals 5 | . . . . 1 1 . 2 1 . Communications Jammed 9 | . . . . . . . . 9 . Distress Signals 9 | . . . . . . . . 9 . Times Spotted 97 | . . 8 . 21 19 3 13 28 5 Peak Tracking Total 6 | . . 3 . 6 6 1 4 4 6 Tactical Retreats 10 | . . 1 . 4 3 . 1 1 . Traps | -11 -10 -10 -10 -9 -8 -7 -7 -6 -6 ------- Run | Yrd Mat Min Exi Min Mat Fac Sto Fac Was Traps Triggered 9 | . 1 . . . . 3 . 5 . Indirectly 1 | . . . . . . . . 1 . Trap Hack Attempts . | . . . . . . . . . . Triggered . | . . . . . . . . . . Disarmed . | . . . . . . . . . . Reprogrammed . | . . . . . . . . . . Reused . | . . . . . . . . . . Traps Extracted . | . . . . . . . . . . Installed . | . . . . . . . . . . Triggered . | . . . . . . . . . . Machines | -11 -10 -10 -10 -9 -8 -7 -7 -6 -6 ---------- Run | Yrd Mat Min Exi Min Mat Fac Sto Fac Was Machines Disabled 5 | . . . . . 2 . 1 2 . Max in Single Turn 2 | . . . . . 2 . 1 1 . Machines Repaired . | . . . . . . . . . . Machines Dismantled . | . . . . . . . . . . Machines Sabotaged . | . . . . . . . . . . Overloaded Fab Kills . | . . . . . . . . . . Hacking | -11 -10 -10 -10 -9 -8 -7 -7 -6 -6 --------- Run | Yrd Mat Min Exi Min Mat Fac Sto Fac Was Machines Accessed 20 | . . . . . 3 3 7 7 . Terminals 11 | . . . . . 2 1 6 2 . Fabricators 1 | . . . . . . . . 1 . Repair Stations 4 | . . . . . . 1 1 2 . Recycling Units 1 | . . . . . . . . 1 . Scanalyzers 3 | . . . . . 1 1 . 1 . Garrison Access . | . . . . . . . . . . Total Hacks 52 | . . . . . 8 7 19 18 . Successful 28 | . . . . . 5 3 12 8 . Failed 24 | . . . . . 3 4 7 10 . Catastrophic 5 | . . . . . 2 1 1 1 . Database Lockouts . | . . . . . . . . . . Manual 39 | . . . 1 . 8 5 14 11 . Terminals 30 | . . . . . 7 3 17 3 . Fabricators 2 | . . . . . . . . 2 . Repair Stations 13 | . . . . . . 2 2 9 . Recycling Units 2 | . . . . . . . . 2 . Scanalyzers 5 | . . . . . 1 2 . 2 . Garrison Access . | . . . . . . . . . . Terminal Hacks 9 | . . . . . 2 . 7 . . Open Door 3 | . . . . . . . 3 . . Level Access Points 2 | . . . . . 1 . 1 . . Unreport Threat 2 | . . . . . 1 . 1 . . Registered Components 1 | . . . . . . . 1 . . Registered Prototypes 1 | . . . . . . . 1 . . Fabricator Hacks 2 | . . . . . . . . 2 . Load Schematic 1 | . . . . . . . . 1 . Build 1 | . . . . . . . . 1 . Repair Station Hacks 7 | . . . . . . 2 2 3 . Scan Component 3 | . . . . . . 1 1 1 . Repair 3 | . . . . . . 1 1 1 . Refit 1 | . . . . . . . . 1 . Recycling Unit Hacks 1 | . . . . . . . . 1 . Retrieve Components 1 | . . . . . . . . 1 . Scanalyzer . | . . . . . . . . . . Garrison Access Hacks . | . . . . . . . . . . Unauthorized Hacks 9 | . . . . . 3 1 3 2 . Terminals 7 | . . . . . 2 1 3 1 . Botnet 7 | . . . . . 2 1 3 1 . Fabricators . | . . . . . . . . . . Repair Stations . | . . . . . . . . . . Recycling Units . | . . . . . . . . . . Scanalyzers 2 | . . . . . 1 . . 1 . Extract 2 | . . . . . 1 . . 1 . Garrison Access . | . . . . . . . . . . Data Cores Recovered . | . . . . . . . . . . Used . | . . . . . . . . . . Hacking Detections 15 | . . . . . 2 3 5 5 . Full Trace Events 2 | . . . . . . . . 2 . Feedback Events . | . . . . . . . . . . Feedback Blocked . | . . . . . . . . . . Robot Schematics Acquired . | . . . . . . . . . . Robots Built . | . . . . . . . . . . Authchips . | . . . . . . . . . . Time . | . . . . . . . . . . Total Robot Build Rating . | . . . . . . . . . . Part Schematics Acquired 11 | . . . . . 7 . . 4 . Parts Built 1 | . . . . . . . . 1 . Authchips . | . . . . . . . . . . Time 36 | . . . . . . . . 36 . Total Part Build Rating 3 | . . . . . . . . 3 . Parts Repaired 3 | . . . . . . 1 1 1 . Time 54 | . . . . . . 19 13 22 . Parts Recycled . | . . . . . . . . . . Recycled Matter . | . . . . . . . . . . Retrieved Matter . | . . . . . . . . . . Retrieved Components 2 | . . . . . . . . 2 . Parts Scanalyzed . | . . . . . . . . . . Part Schematics Acquired . | . . . . . . . . . . Parts Damaged . | . . . . . . . . . . Bothacking | -11 -10 -10 -10 -9 -8 -7 -7 -6 -6 ------------ Run | Yrd Mat Min Exi Min Mat Fac Sto Fac Was Used RIF Installer . | . . . . . . . . . . Robots Hacked . | . . . . . . . . . . Non-combat . | . . . . . . . . . . Combat . | . . . . . . . . . . Robot Hacks Applied . | . . . . . . . . . . Relay Couplers Released . | . . . . . . . . . . Fabnet Peak Effective % . | . . . . . . . . . . Robots Rewired . | . . . . . . . . . . Allies Hacked . | . . . . . . . . . . Hacks Repelled . | . . . . . . . . . . Allies | -11 -10 -10 -10 -9 -8 -7 -7 -6 -6 -------- Run | Yrd Mat Min Exi Min Mat Fac Sto Fac Was Total Allies 13 | . . 3 . . . . 10 . . Largest Group 10 | . . 3 3 3 . . 10 6 . Highest-Rated Group 173 | . . 40 40 40 . . 173 96 . Highest-Rated Ally 29 | . . 16 16 16 . . 29 16 . Total Orders . | . . . . . . . . . . Ally Attacks 94 | . . 9 . 5 . . 38 42 . Total Damage 1137 | . . 103 . 17 . . 507 510 . Kills 11 | . . 2 . . . . 5 4 . Allies Corrupted 1 | . . . . . . . 1 . . Allies Melted . | . . . . . . . . . . Intel | -11 -10 -10 -10 -9 -8 -7 -7 -6 -6 ------- Run | Yrd Mat Min Exi Min Mat Fac Sto Fac Was Robot Analysis Total . | . . . . . . . . . . Derelict Logs Recovered 2 | . . 1 . 1 . . . . . Drone Launches . | . . . . . . . . . . Drone Recoveries . | . . . . . . . . . . Exploration | -11 -10 -10 -10 -9 -8 -7 -7 -6 -6 ------------- Run | Yrd Mat Min Exi Min Mat Fac Sto Fac Was Turns Passed 7795 | 39 68 376 562 1092 1151 885 1021 2535 66 Spaces Moved 4509 | 32 66 272 491 614 468 646 611 1233 76 Core 8 | 5 . . . . . 1 2 . . Treads . | . . . . . . . . . . Legs . | . . . . . . . . . . Wheels 3737 | 27 66 272 491 614 468 641 607 551 . Hover 758 | . . . . . . . . 682 76 Flight 6 | . . . . . . 4 2 . . Fastest Speed 50 | 50 90 105 110 105 95 110 110 110 59 Average Speed 118 | 83 95 107 110 110 102 119 119 136 76 Slowest Speed 1800 | 90 105 110 110 140 140 1750 1800 184 118 Overloaded Moves . | . . . . . . . . . . Propulsion Burnouts . | . . . . . . . . . . Robots Hopped . | . . . . . . . . . . Cave-ins Triggered 1 | . . . . . 1 . . . . Exploration Rate (%) 43 | 3 15 60 89 90 38 13 50 19 56 Regions Visited 9 Branch Regions 4 Pre-discovered Areas 2 | . . 1 . . . . 1 . . Known Exits Taken 3 | . . . . . 1 1 1 . . Unknown Exits Taken 5 | 1 1 1 1 1 . . . . . Scrap Searched 2 | . . . . 2 . . . . . Spaces Dug 83 | . . . . . 20 10 24 29 . Terrain Destroyed 157 | . . . . . 45 10 27 75 . Melee 81 | . . . . . 20 10 24 27 . Projectile 21 | . . . . . 4 . 3 14 . AOE 55 | . . . . . 21 . . 34 . Terrain Rammed . | . . . . . . . . . . Walls Destroyed . | . . . . . . . . . . Machines Disabled . | . . . . . . . . . . Actions | -11 -10 -10 -10 -9 -8 -7 -7 -6 -6 --------- Run | Yrd Mat Min Exi Min Mat Fac Sto Fac Was Total 6414 | 42 70 313 513 903 1049 723 796 1921 84 Wait 1321 | . . 16 17 167 502 19 68 524 8 Move 4501 | 31 65 271 490 613 467 645 610 1233 76 Hop . | . . . . . . . . . . Pick Up 77 | 4 3 3 . 20 8 12 10 17 . Fast Attach 35 | 3 1 . 3 2 1 12 9 4 . Attach 30 | 3 . 1 . 6 7 1 5 7 . Detach 2 | . . . 1 . . . . 1 . Swap 68 | 1 1 2 . 9 11 3 15 26 . Drop 61 | . . . 2 11 6 13 18 11 . Fire 195 | . . 20 . 75 21 2 21 56 . Melee 123 | . . . . . 26 16 40 41 . Ram 1 | . . . . . . . . 1 . Kick . | . . . . . . . . . . Crush . | . . . . . . . . . . Escape Stasis . | . . . . . . . . . . Rewire . | . . . . . . . . . . Trap . | . . . . . . . . . . Miscellaneous . | . . . . . . . . . . Route ------- -11/Scrapyard -10/Materials -10/Mines (discovered 3 exits: [*Mat x2] / *Exi) -10/Exiles (discovered 2 exits: [*Min x2]) -9/Mines -8/Materials (discovered 3 exits: *Fac x3) -7/Factory -7/Storage -6/Factory -6/Waste History --------- Turn | Location | Event 22 | -11/Scrapyard | Discovered new exit (range 15) 40 | -11/Scrapyard | Entered Materials 98 | -10/Materials | Discovered new exit (range 8) 108 | -10/Materials | Entered Mines 239 | -10/Mines | Learned location of 1 exit from Materials 275 | -10/Mines | Learned location of Storage (-7) 320 | -10/Mines | Build established: Mutant 391 | -10/Mines | Discovered new exit (range 9) 408 | -10/Mines | Discovered new exit (range 12) 427 | -10/Mines | Assisted by bots powering up and referring to "LRC-V3" 469 | -10/Mines | Deemed a non-threat by the Exiles lab entrance 469 | -10/Mines | Discovered new exit (range 5) 484 | -10/Mines | Entered Exiles 484 | -10/Exiles | Accompanied by 3 allies 501 | -10/Exiles | Discovered new exit (range 15) 512 | -10/Exiles | Met 8R-AWN 531 | -10/Exiles | Met EX-HEX 559 | -10/Exiles | Met EX-BIN 572 | -10/Exiles | Aligned with FarCom system 574 | -10/Exiles | Given EX-Vault access code 603 | -10/Exiles | Opened EX-Vault 610 | -10/Exiles | Found Prototype Device 610 | -10/Exiles | Identified PSU Rigger 618 | -10/Exiles | Found Prototype Device 618 | -10/Exiles | Identified Skeleton Box 623 | -10/Exiles | Found Prototype Processor 623 | -10/Exiles | Identified 0b10 Alert Chip 646 | -10/Exiles | Warned to stay clear of 0b10 Research branches 682 | -10/Exiles | Met EX-DEC 779 | -10/Exiles | Discovered new exit (range 10) 860 | -10/Exiles | Visited The Gauntlet 1046 | -10/Exiles | Left Exiles lab with 0b10 Alert Chip 1046 | -10/Exiles | Entered Mines 1046 | -9/Mines | Accompanied by 3 allies 1047 | -9/Mines | Assembled infested the area 1052 | -9/Mines | Assisted by a Guerilla fighting off Assembled 1444 | -9/Mines | Discovered new exit (range 16) 1462 | -9/Mines | Core integrity fell below 50% 1500 | -9/Mines | Learned Materials stockpile data 1582 | -9/Mines | Core integrity fell below 20% 1782 | -9/Mines | A weapon hastily lodged in a ceiling crevice suddenly fell to the ground 1911 | -9/Mines | Build established: Scavenger-Mutant 2078 | -9/Mines | Joined a pair of Derelicts in attacking an 0b10 outpost 2138 | -9/Mines | Entered Materials 2138 | -8/Materials | Evolved 4 slots: Propulsion x2, Utility x2 2139 | -8/Materials | Identified exit to Factory 3129 | -8/Materials | Crushed by falling debris 3272 | -8/Materials | Core integrity fell below 50% 3289 | -8/Materials | Entered Factory 3289 | -7/Factory | Evolved 2 slots: Utility x2 3592 | -7/Factory | Repaired Missile Launcher 4087 | -7/Factory | Discovered new exit (range 6) 4094 | -7/Factory | Identified exit to Storage 4174 | -7/Factory | Entered Storage 4390 | -7/Storage | Identified exit to Factory 4909 | -7/Storage | Learned location of Armory (-4) 5008 | -7/Storage | Assisted by bots powering up and referring to "LRC-V3" 5116 | -7/Storage | Repaired Wheel 5124 | -7/Storage | Lost 3 allies 5195 | -7/Storage | Entered Factory 5195 | -6/Factory | Accompanied by 6 allies 5195 | -6/Factory | Evolved 2 slots: Propulsion x1, Utility x1 5466 | -6/Factory | Garrison activated, responded to threat 5507 | -6/Factory | Lost 5 allies 6329 | -6/Factory | Repaired Gravmag System 6355 | -6/Factory | Build established: Hacker-Mutant 7421 | -6/Factory | Lost 3 parts (3u) 7489 | -6/Factory | Core integrity fell below 50% 7598 | -6/Factory | Fabricated Hacking Suite (x1) 7730 | -6/Factory | Sucked down chute 7730 | -6/Factory | Entered Waste 7735 | -6/Waste | Spotted C-40 Crusher 7746 | -6/Waste | Crushed by Compactor (1 part destroyed, 2 dropped) 7754 | -6/Waste | Spotted C-40 Crusher 7758 | -6/Waste | Spotted C-40 Crusher 7761 | -6/Waste | Crushed by Compactor (1 part destroyed, 1 dropped) 7764 | -6/Waste | Crushed by Compactor (1 part destroyed, 2 dropped) 7778 | -6/Waste | Spotted C-40 Crusher 7779 | -6/Waste | Spotted C-40 Crusher 7790 | -6/Waste | Crushed by Compactor (1 part destroyed, 1 dropped) 7790 | -6/Waste | Crushed by Compactor (1 part destroyed, 1 dropped) 7791 | -6/Waste | Crushed by Compactor (1 part destroyed, 1 dropped) 7794 | -6/Waste | Core integrity fell below 20% 7796 | -6/Waste | Destroyed by C-40 Crusher with Compactor Last Messages --------------- Gravmag System crushed. Cmb. Airjet crushed. Matter Filter crushed. Imp. Deuterium Engine crushed. Cmb. Airjet crushed. Hvy. Machine Gun crushed. Cld. Aerolev Unit crushed. Cmb. Airjet crushed. Missile Launcher crushed. Hvy. Flail crushed. Imp. Light Armor Plating crushed. Lgt. Angular Momentum Engine destroyed. Imp. Transmission Jammer crushed. System corrupted: Component data lost. Cmb. Airjet crushed. Gyrokinetic Inverter crushed. Weapon Cycler crushed. Hacking Suite crushed. Imp. Signal Interpreter crushed. [Achievement: Achiever] Map ----- +----------------------------------------------------+ | ?????????????????????????????????????????????????? | | ?????????????????????????????????????????????????? | | ?????????????????????????????????????????????????? | | ?????????????????????????????????????????????????? | | ?????????????????????????????????????????????????? | | ?????????????????????????????????????????????????? | | ?????????????????????????????????????????????????? | | ?????????????????????????????????????????????????? | | ?????????????????????????????????????????????????? | | ??????######??????######?????????????????????????? | | ??????# #??????# #?????????????????????????? | | ??????# #??????# #?????????????????????????? | | ??????# #??????# #?????????????????????????? | | ??????# ! #??????# #?????????????????????????? | | ####### #??????# #?????????????????????????? | | #??????# #?????????????????????????? | | #??????# #?????????????????????????? | | #??????# #?????????????????????????? | | **! #??????# #?????????????????????????? | | ####### #??????# #?????????????????????????? | | ??????# #??????# #?????????????????????????? | | ??????# #??????# #???????????#?????????????? | | ??????# #??????# #????????? !#?????????????? | | ??????# ! #??????# ######## ###???????????? | | ??????# #??????# CC CC #???????????? | | ??????# #??????# CCCC@CC #???????????? | | ??????# #??????# CC CC #???????????? | | ??????# #??????# CC #???????????? | | ??????# #??????# ######## ###???????????? | | ??????# #??????# #????????? #?????????????? | | ??????# #??????# #???????????#?????????????? | | ??????# #??????# #?????????????????????????? | | ####### ######## #?????????????????????????? | | = C #?????????????????????????? | | C #?????????????????????????? | | #?????????????????????????? | | /! #?????????????????????????? | | ####### ######## #?????????????????????????? | | ??????# #??????# #?????????????????????????? | | ??????# #??????# #?????????????????????????? | | ??????# #??????# #?????????????????????????? | | ??????# #??????# #?????????????????????????? | | ??????######??????######?????????????????????????? | | ?????????????????????????????????????????????????? | | ?????????????????????????????????????????????????? | | ?????????????????????????????????????????????????? | | ?????????????????????????????????????????????????? | | ?????????????????????????????????????????????????? | | ?????????????????????????????????????????????????? | | ?????????????????????????????????????????????????? | +----------------------------------------------------+ Best States ------------- Heat Dissipation 37 Energy Generation 18 Energy Capacity 310 Matter Stores 300 Matter Capacity 300 Sight Range 16 Terrain Scan Density 210 Jamming Range 12 Armor Coverage 375 Weapon Cycling 15 Evasion (%) 53 Offensive Hacking 20 Item Schematics ----------------- Hcp. Storage Unit | -8/Materials | Extracted Flak Cannon | -8/Materials | Extracted Hacking Suite | -8/Materials | Extracted Imp. Terrain Scanner | -8/Materials | Extracted Actuator Array | -8/Materials | Extracted Great Maul | -8/Materials | Extracted Hvy. Flail | -8/Materials | Extracted Fission Core | -6/Factory | Extracted Adv. ECM Suite | -6/Factory | Extracted Hardlight Generator | -6/Factory | Extracted Adv. Signal Interpreter | -6/Factory | Extracted Robot Schematics ------------------ None Fabricated ------------ Hacking Suite | x1 | -6/Factory Alien Tech Used ----------------- None Achievements -------------- Achiever Brute Force No Signal Challenges ------------ None Game ------ Seed VampiricThermalWand Manual? 0 Play Time 01:21:31 Cumulative 25.4 hours Start 2024.08.31 @ 14:32:22 End 2024.09.01 @ 04:13:44 Sessions 3 Manual Loads 0 Difficulty Rogue Special Mode None Game No. 36 Rogue 36 Adventurer 0 Explorer 0 Win Type - Total 0 Types 0/0/0/0/0/0/0/0/0 Lore% 14 Gallery% 26 Achievement% 25 Wizard Run 0 Options --------- Layout 0 ASCII 0 Keyboard 0 Movement Numpad Keybinds 0 Fullscreen 1 Font 18/Cog Map View 76x50 Zoom Use 0% Tactical HUD 0 Map Filters NONE Filters NONE Steam 1 RUN: 155a4b6a-fb92-4e80-a757-9711dc3a9a99